fUSD/lending_fUSD_20241219
["ID","MTS","AMOUNT","RATE_DAILY","PERIOD"]
[346024001,1734631847984,-500.0,0.00024814,4]
[346024002,1734631847994,-500.0,0.00024814,4]
[346024003,1734631848003,-500.0,0.00024814,4]
[346024004,1734631848018,-500.0,0.00024814,4]
[346024005,1734631848029,-500.0,0.00024814,4]
[346024006,1734631848039,-568.72,0.00024814,4]
[346024007,1734631848049,-1603.4,0.00024814,4]
[346024008,1734631848059,-500.0,0.00024814,4]
[346024009,1734631848070,-500.0,0.00024814,4]
[346024010,1734631848081,-500.0,0.00024814,4]
[346024011,1734631848091,-500.0,0.00024814,4]
[346024012,1734631848101,-500.0,0.00024814,4]
[346024013,1734631848111,-500.0,0.00024814,4]
[346024014,1734631848121,-500.0,0.00024814,4]
[346024015,1734631848129,-500.0,0.00024814,4]
[346024016,1734631848138,-500.0,0.00024814,4]
[346024017,1734631848148,-500.0,0.00024814,4]
[346024018,1734631848157,-500.0,0.00024814,4]
[346024019,1734631848166,-500.0,0.00024814,4]
[346024020,1734631848177,-713.5,0.00024814,4]
[346024021,1734631848187,-500.0,0.00024814,4]
[346024022,1734631848197,-500.0,0.00024814,4]
[346024023,1734631848207,-500.0,0.00024814,4]
[346024024,1734631848217,-500.0,0.00024814,4]
[346024025,1734631848227,-405.8,0.00024814,4]
[346024026,1734631848237,-450.68,0.00024814,4]
[346024027,1734631848246,-1144.91,0.00024814,4]
[346024028,1734631848256,-500.0,0.00024814,4]
[346024029,1734631848272,-500.0,0.00024814,4]
[346024030,1734631848283,-1225.15,0.00024815,4]
[346024031,1734631848293,-806.4,0.00024815,4]
[346024032,1734631848303,-500.0,0.00024815,4]
[346024033,1734631848313,-543.8,0.00024815,4]
[346024034,1734631848324,-748.01,0.00024815,4]
[346024035,1734631848334,-500.0,0.00024815,4]
[346024036,1734631848344,-500.0,0.00024815,4]
[346024037,1734631848354,-500.0,0.00024815,4]
[346024038,1734631848364,-500.0,0.00024815,4]
[346024039,1734631848374,-500.0,0.00024815,4]
[346024040,1734631848384,-500.0,0.00024815,4]
[346024041,1734631848394,-236.8,0.00024816,4]
[346024042,1734631848404,-500.0,0.00024816,4]
[346024043,1734631848415,-500.0,0.00024816,4]
[346024044,1734631848425,-500.0,0.00024816,4]
[346024045,1734631848436,-500.0,0.00024816,4]
[346024046,1734631848446,-500.0,0.00024816,4]
[346024047,1734631848456,-500.0,0.00024816,4]
[346024048,1734631848467,-500.0,0.00024816,4]
[346024049,1734631848479,-500.0,0.00024816,4]
[346024050,1734631848490,-500.0,0.00024816,4]
[346024051,1734631848500,-500.0,0.00024816,4]
[346024052,1734631848511,-500.0,0.00024816,4]
[346024053,1734631848529,-500.0,0.00024816,4]
[346024054,1734631848539,-500.0,0.00024816,4]
[346024055,1734631848551,-500.0,0.00024816,4]
[346024056,1734631848562,-500.0,0.00024816,4]
[346024057,1734631848573,-500.0,0.00024816,4]
[346024058,1734631848583,-589.16,0.00024816,4]
[346024059,1734631848593,-723.35,0.00024816,4]
[346024060,1734631848603,-490.78512808,0.00024816,4]
[346024061,1734631848613,-500.0,0.00024816,4]
[346024062,1734631848623,-500.0,0.00024816,4]
[346024063,1734631848633,-500.0,0.00024816,4]
[346024064,1734631848643,-500.0,0.00024816,4]
[346024065,1734631848653,-844.37,0.00024816,4]
[346024066,1734631848663,-500.0,0.00024816,4]
[346024067,1734631848672,-500.0,0.00024816,4]
[346024068,1734631848683,-500.0,0.00024816,4]
[346024069,1734631848693,-1966.96747,0.00024817,2]
[346024070,1734631848703,-150.0,0.00024823,2]
[346024071,1734631848713,-150.0,0.00024834,2]
[346024072,1734631848722,-150.0,0.00024848,2]
[346024073,1734631848733,-150.0,0.00024849,2]
[346024074,1734631848744,-150.0,0.00024857,2]
[346024075,1734631848754,-150.0,0.00024864,2]
[346024076,1734631848769,-150.0,0.0002487,2]
[346024077,1734631848781,-150.0,0.00024891,2]
[346024078,1734631848791,-150.0,0.00024897,2]
[346024079,1734631848802,-150.0,0.00024899,2]
[346024080,1734631848812,-413.70096445,0.000249,2]
[346024081,1734631848824,-676.96,0.000249,31]
[346024082,1734631848834,-676.96,0.000249,31]
[346024083,1734631848847,-676.96,0.000249,31]
[346024084,1734631848857,-676.96,0.000249,31]
[346024085,1734631848867,-676.96,0.000249,31]
[346024086,1734631848878,-676.96,0.000249,31]
[346024087,1734631848888,-676.96,0.000249,31]
[346024088,1734631848899,-676.96,0.000249,31]
[346024089,1734631848909,-676.96,0.000249,31]
[346024090,1734631848920,-676.96,0.000249,31]
[346024091,1734631848930,-676.96,0.000249,31]
[346024092,1734631848941,-676.96,0.000249,31]
[346024093,1734631848951,-676.96,0.000249,31]
[346024094,1734631848962,-676.96,0.000249,31]
[346024095,1734631848972,-676.96,0.000249,31]
[346024096,1734631848983,-676.96,0.000249,31]
[346024097,1734631848993,-2740.40673529,0.000249,2]
[346024098,1734631849004,-432.04614065,0.000249,2]
[346024099,1734631849017,-151.7625668,0.000249,2]
[346024100,1734631849027,-151.7625668,0.000249,2]
[346024101,1734631849038,-151.7625668,0.000249,2]
[346024102,1734631849048,-151.7625668,0.000249,2]
[346024103,1734631849059,-151.7625668,0.000249,2]
[346024104,1734631849069,-151.7625668,0.000249,2]
[346024105,1734631849080,-151.7625668,0.000249,2]
[346024106,1734631849090,-151.7625668,0.000249,2]
[346024107,1734631849101,-151.7625668,0.000249,2]
[346024108,1734631849110,-266.99719474,0.000249,2]
[346024109,1734631849121,-1578.41592412,0.000249,2]
[346024110,1734631849133,-150.0,0.00024926,2]
[346024111,1734631849144,-150.0,0.00024944,2]
[346024112,1734631849155,-150.0,0.00024992,2]
[346024113,1734631849166,-150.0,0.00024995,2]
[346024114,1734631849176,-1566.0,0.00024999,2]
[346024115,1734631849186,-500.0,0.00024999,2]
[346024116,1734631849197,-999.0,0.00024999,2]
[346024117,1734631849208,-568.72,0.00024999,4]
[346024118,1734631849218,-568.72,0.00024999,4]
[346024119,1734631849228,-568.72,0.00024999,4]
[346024120,1734631849239,-568.72,0.00024999,4]
[346024121,1734631849249,-568.72,0.00024999,4]
[346024122,1734631849260,-568.72,0.00024999,4]
[346024123,1734631849274,-568.72,0.00024999,4]
[346024124,1734631849285,-568.72,0.00024999,4]
[346024125,1734631849296,-568.72,0.00024999,4]
[346024126,1734631849306,-568.72,0.00024999,4]
[346024127,1734631849317,-568.72,0.00024999,4]
[346024128,1734631849327,-568.72,0.00024999,4]
[346024129,1734631849338,-568.72,0.00024999,4]
[346024130,1734631849349,-568.72,0.00024999,4]
[346024131,1734631849360,-568.72,0.00024999,4]
[346024132,1734631849371,-568.72,0.00024999,4]
[346024133,1734631849382,-568.72,0.00024999,4]
[346024134,1734631849393,-568.72,0.00024999,4]
[346024135,1734631849403,-568.72,0.00024999,4]
[346024136,1734631849414,-568.72,0.00024999,4]
[346024137,1734631849424,-568.72,0.00024999,4]
[346024138,1734631849437,-568.74070945,0.00024999,4]
[346024139,1734631849447,-58128.56182002,0.00025,3]
[346024140,1734631849458,-558.58932339,0.00025,3]
[346024141,1734631849624,-353.01982003,0.00025,2]
[346024142,1734631849635,-3389071.70022986,0.00025,2]
[346024143,1734631849645,-408906.85010996,0.00025,2]
[346024144,1734631849901,-294.0,0.00024539,4]
[346024145,1734631849912,-206.0,0.00024539,4]
[346024146,1734631849922,-431.6,0.00024813,4]
[346024147,1734631849931,-2385.65990959,0.00025,2]
[346024148,1734631849942,-3153.82946287,0.00025,2]
[346024149,1734631849954,-2228.74663345,0.00025,2]
[346024150,1734631849965,-1350.31306839,0.00025,2]
[346024151,1734631849976,-6879.99999989,0.00025,2]
[346024152,1734631849988,-1173.25799487,0.00025,2]
[346024153,1734631849999,-1027.63580214,0.00025,2]
[346024154,1734631850011,-445.100006,0.00025,2]
[346024155,1734631850025,-48879.8103,0.00025,2]
[346024156,1734631850035,-277.65739939,0.00025,2]
[346024157,1734631850046,-266.63247075,0.00025,2]
[346024158,1734631850057,-2450.0,0.00025,2]
[346024159,1734631850073,-320.39832292,0.00025,2]
[346024160,1734631850084,-3400.00000001,0.00025,2]
[346024161,1734631850095,-725.291,0.00025,2]
[346024162,1734631850106,-1140.12256896,0.00025,2]
[346024163,1734631850117,-1675.425,0.00025,2]
[346024164,1734631850128,-981.981,0.00025,2]
[346024165,1734631850139,-1050.24467693,0.00025,2]
[346024166,1734631850149,-1961.96,0.00025,2]
[346024167,1734631850165,-21751.01370063,0.00025,2]
[346024168,1734631850177,-22671.12061355,0.00025,2]
[346024169,1734631850189,-47089.9723161,0.00025,2]
[346024170,1734631850202,-1929.6276839,0.00025,2]
[346024171,1734631850215,-983.22,0.00025,2]
[346024172,1734631850227,-9810.88649602,0.00025,2]
[346024173,1734631850263,-491.514955,0.00025,2]
[346024174,1734631850282,-489.2025,0.00025,2]
[346024175,1734631850310,-487.63773578,0.00023992,4]
[346024176,1734631850322,-12.36226422,0.00023992,4]
[346024177,1734631850333,-1517.36832768,0.00025,2]
[346024178,1734631850344,-51941.86772223,0.00025,2]
[346024179,1734631850355,-1077897.47216518,0.00025,2]
[346024180,1734631850367,-8126.31842436,0.00025,2]
[346024181,1734631850390,-474.1866154,0.00025,2]
[346024182,1734631850402,-7541.4826334,0.00025,2]
[346024183,1734631850418,-500.0,0.00024266,4]
[346024184,1734631850429,-14109.92353959,0.00025,2]
[346024185,1734631850494,-6823.99999999,0.00025,2]
[346024186,1734631850506,-907.77834244,0.00025,2]
[346024187,1734631850524,-2968.99999999,0.00025,2]
[346024188,1734631850535,-49009.79999998,0.00025,2]
[346024189,1734631850546,-21161.83391333,0.00025,2]
[346024190,1734631850558,-17000.00000005,0.00025,2]
[346024191,1734631850573,-19600.0,0.00025,2]
[346024192,1734631850587,-4712.19725246,0.00025,2]
[346024193,1734631850600,-604.47118936,0.00025,2]
[346024194,1734631850613,-4000.0,0.00025,2]
[346024195,1734631850626,-2510.32778584,0.00025,2]
[346024196,1734631850640,-8193.71887247,0.00025,2]
[346024197,1734631850653,-12652.28060039,0.00025,2]
[346024198,1734631850665,-1977.66880255,0.00025,2]
[346024199,1734631850678,-1369.14772133,0.00025,2]
[346024200,1734631850691,-706.30194967,0.00025,2]
[346024201,1734631850702,-1300.95209399,0.00025,2]
[346024202,1734631850715,-124966.31627716,0.00025,2]
[346024203,1734631850727,-361.50571309,0.00025,2]
[346024204,1734631850743,-500.0,0.0002454,4]
[346024205,1734631850753,-2693.1738272,0.00025,2]
[346024206,1734631850770,-1473.497025,0.00025,2]
[346024207,1734631850784,-354.77469347,0.00025,2]
[346024208,1734631850796,-7431.57144061,0.00025,2]
[346024209,1734631850808,-17397.9147304,0.00025,2]
[346024210,1734631850821,-473.90870392,0.00025,2]
[346024211,1734631850896,-286.77991139,0.00024814,4]
[346024212,1734631850908,-213.22008861,0.00024814,4]
[346024213,1734631850919,-155216.1812307,0.00025,2]
[346024214,1734631850930,-267796.27162497,0.00025,2]
[346024215,1734631850942,-176274.05912035,0.00025,2]
[346024216,1734631850953,-21870.22398851,0.00025,2]
[346024217,1734631850965,-64598.892,0.00025,2]
[346024218,1734631850978,-3410.0,0.00025,2]
[346024219,1734631850990,-1105.33987344,0.00025,2]
[346024220,1734631851051,-1971.650002,0.00025,2]
[346024221,1734631851061,-1766.70000018,0.00025,2]
[346024222,1734631851073,-3111.02341565,0.00025,2]
[346024223,1734631851086,-2043.93129805,0.00025,2]
[346024224,1734631851098,-9321.649375,0.00025,2]
[346024225,1734631851110,-253.74656008,0.00025,2]
[346024226,1734631851122,-300.0004431,0.00025,2]
[346024227,1734631851137,-26239.03136095,0.00025,2]
[346024228,1734631851148,-400.4000002,0.00025,2]
[346024229,1734631851168,-342.38583115,0.00023992,4]
[346024230,1734631851185,-157.61416885,0.00023992,4]
[346024231,1734631851195,-772.25968381,0.00025,2]
[346024232,1734631851206,-36583.47977384,0.00025,2]
[346024233,1734631851217,-7004.72014023,0.00025,2]
[346024234,1734631851228,-30902.86224303,0.00025,2]
[346024235,1734631851307,-221.03,0.0002337,2]
[346024236,1734631851317,-500.0,0.00023991,4]
[346024237,1734631851327,-267.51413396,0.00023991,4]
[346024238,1734631851339,-232.48586604,0.00023991,4]
[346024239,1734631851349,-500.0,0.00023991,4]
[346024240,1734631851359,-305.64,0.00024265,4]
[346024241,1734631851369,-500.0,0.00024266,4]
[346024242,1734631851379,-500.0,0.0002454,4]
[346024243,1734631851389,-547.71392167,0.00024814,4]
[346024244,1734631851398,-1566.42196079,0.00025,2]
[346024245,1734631851410,-27923.12809127,0.00025,2]
[346024246,1734631851421,-27475.000004,0.00025,2]
[346024247,1734631851433,-1320.05848825,0.00025,2]
[346024248,1734631851449,-1715.0,0.00025,2]
[346024249,1734631851460,-1950.0,0.00025,2]
[346024250,1734631851472,-73777.00000001,0.00025,2]
[346024251,1734631851493,-500.0,0.00023992,4]
[346024252,1734631851503,-1162.11573376,0.00025,2]
[346024253,1734631851519,-30553.50921294,0.00025,2]
[346024254,1734631851532,-8224.6500002,0.00025,2]
[346024255,1734631851547,-436.03,0.0002337,2]
[346024256,1734631851556,-26170.43458836,0.00025,2]
[346024257,1734631851577,-976.54,0.0002337,2]
[346024258,1734631851586,-500.0,0.00024266,4]
[346024259,1734631851597,-2884.0518952,0.00025,2]
[346024260,1734631851608,-27499.93625491,0.00025,2]
[346024261,1734631851620,-5060.34701553,0.00025,2]
[346024262,1734631851632,-3710.39236975,0.00025,2]
[346024263,1734631851659,-267.65989959,0.00025,2]
[346024264,1734631851671,-1984.76999992,0.00025,2]
[346024265,1734631851683,-19612.0,0.00025,2]
[346024266,1734631851694,-6098.59356925,0.00025,2]
[346024267,1734631851787,-2333.08104326,0.00022655,2]
[346024268,1734631851798,-283.94267375,0.00023991,4]
[346024269,1734631851810,-330.90732625,0.00023991,4]
[346024270,1734631851821,-572.75092412,0.0002454,4]
[346024271,1734631851830,-3864.99007909,0.00025,2]
[346024272,1734631851841,-1065.83165509,0.00025,2]
[346024273,1734631851852,-1964.226781,0.00025,2]
[346024274,1734631851863,-490.32,0.00025,2]
[346024275,1734631851874,-333.3875295,0.00025,2]
[346024276,1734631851886,-21390.51515127,0.00025,2]
[346024277,1734631851901,-165.83466853,0.00023397,2]
[346024278,1734631851911,-3473.81127147,0.00025,2]
[346024279,1734631851922,-50000.11974,0.00025,2]
[346024280,1734631851945,-165.83466853,0.00023534,2]
[346024281,1734631851955,-165.83466853,0.00023699,2]
[346024282,1734631851965,-500.0,0.00023991,4]
[346024283,1734631851975,-105.02435603,0.00025,2]
[346024284,1734631851987,-280.27758344,0.00025,2]
[346024285,1734631851998,-595.1560653,0.00025,2]
[346024286,1734631852013,-1610.33095531,0.00025,2]
[346024287,1734631852038,-165.83466853,0.00023863,2]
[346024288,1734631852047,-165.83466853,0.00024,2]
[346024289,1734631852056,-11012.92286633,0.00025,2]
[346024290,1734631852068,-2736.02398447,0.00025,2]
[346024291,1734631852079,-282.45410902,0.00025,2]
[346024292,1734631852090,-1109.12499989,0.00025,2]
[346024293,1734631852102,-425.16355053,0.00025,2]
[346024294,1734631852113,-18881.37983475,0.00025,2]
[346024295,1734631852125,-278.976001,0.00025,2]
[346024296,1734631852136,-996.32490086,0.00025,2]
[346024297,1734631852151,-500.0,0.00024265,4]
[346024298,1734631852161,-42348.0110658,0.00025,2]
[346024299,1734631852171,-58922.99999518,0.00025,2]
[346024300,1734631852183,-1297.17069481,0.00025,2]
[346024301,1734631852195,-9870.0,0.00025,2]
[346024302,1734631852206,-4908.924,0.00025,2]
[346024303,1734631852218,-9119.70730343,0.00025,2]
[346024304,1734631852229,-39224.0,0.00025,2]
[346024305,1734631852262,-165.83466853,0.00024164,2]
[346024306,1734631852275,-656.84984563,0.00025,2]
[346024307,1734631852287,-4969.25311338,0.00025,2]
[346024308,1734631852318,-76665.350241,0.00025,2]
[346024309,1734631852329,-54639.70924352,0.00025,2]
[346024310,1734631852340,-4071.61726121,0.00025,2]
[346024311,1734631852351,-2102.77265,0.00025,2]
[346024312,1734631987375,186.52,0.00016712,2]
[346024313,1734632103177,3858.24904395,0.000211,120]
[346024314,1734632103217,2604.35814047,0.00021,120]
[346024315,1734632233268,154.29,0.00010137,2]
[346024317,1734632280491,156.19,0.00013699,2]
[346024318,1734632707779,141037.08631254,0.00013,2]
[346024319,1734632710153,15915.56155676,0.000154,2]
[346024320,1734632721008,318.43555457,0.00015323,2]
[346024321,1734632753614,5251.32952948,0.00022,120]
[346024322,1734632756809,270.16008292,0.00014,2]
[346024324,1734632779126,2286.86943642,0.00017,5]
[346024325,1734632790803,1952.39529407,0.00015,2]
[346024326,1734632802686,7177.42,0.0001,10]
[346024327,1734632825802,104624.70792083,0.000157,2]
[346024331,1734632869929,168.46,0.00017706,2]
[346024332,1734632885097,450.0,0.00013,2]
[346024333,1734632886184,500.0,0.00015,2]
[346024334,1734632887289,550.0,0.00017,2]
[346024372,1734633031858,-2749.76208286,0.00018225,2]
[346024374,1734633031870,-20828.45523272,0.00018225,2]
[346024376,1734633031880,-170.57594983,0.00018494,2]
[346024377,1734633031889,-154.29,0.00018594,2]
[346024378,1734633031902,-535.48307734,0.000189,2]
[346024379,1734633031912,-600.0,0.00019,2]
[346024380,1734633031922,-4478.34778911,0.0001901,2]
[346024381,1734633031931,-651.90187787,0.0001911,2]
[346024382,1734633031941,-63286.81393878,0.0001998,2]
[346024383,1734633031950,-3838.99881092,0.0002,4]
[346024384,1734633031960,-7263.69487028,0.0002,2]
[346024385,1734633031970,-793.07348998,0.0002,7]
[346024386,1734633031979,-747.62,0.00020205,2]
[346024387,1734633031988,-54115.74356239,0.000203,2]
[346024388,1734633031998,-650.0,0.00021,2]
[346024389,1734633032007,-500.0,0.00021164,2]
[346024390,1734633032016,-500.0,0.00021164,2]
[346024391,1734633032025,-414.39,0.00021543,2]
[346024392,1734633032034,-367.01,0.00021588,2]
[346024393,1734633032044,-956.78,0.00021655,2]
[346024394,1734633032053,-2397.6978084,0.000219,2]
[346024395,1734633032062,-169.0,0.00022,2]
[346024396,1734633032071,-1486.0,0.00022,2]
[346024397,1734633032081,-168.46,0.00022132,2]
[346024398,1734633032090,-1744.25,0.00022133,2]
[346024399,1734633032099,-4583.0,0.00022138,2]
[346024400,1734633032108,-270.48780477,0.0002219,2]
[346024401,1734633032117,-23900.0,0.00022191,2]
[346024402,1734633032127,-615.10833277,0.00022197,2]
[346024403,1734633032136,-250.0,0.00022226,2]
[346024404,1734633032147,-169.23,0.00022297,2]
[346024405,1734633032156,-2000.0,0.000223,2]
[346024406,1734633032166,-1000.0,0.00022317,2]
[346024407,1734633032175,-689.36,0.00022321,2]
[346024408,1734633032184,-3916.85,0.00022335,2]
[346024409,1734633032193,-250.0,0.00022439,2]
[346024410,1734633032202,-956.78,0.00022456,2]
[346024411,1734633032211,-250.0,0.00022467,2]
[346024412,1734633032220,-747.62,0.00022468,2]
[346024413,1734633032229,-150.0,0.00022488,4]
[346024414,1734633032238,-150.0,0.00022488,4]
[346024415,1734633032247,-150.0,0.00022488,4]
[346024416,1734633032256,-150.0,0.00022488,4]
[346024417,1734633032265,-194.0,0.00022542,2]
[346024418,1734633032274,-150.0,0.00022607,4]
[346024419,1734633032283,-161.45,0.00022656,2]
[346024420,1734633032292,-150.0,0.00022726,4]
[346024421,1734633032301,-180.22,0.00022765,30]
[346024422,1734633032310,-226.29,0.0002277,2]
[346024423,1734633032319,-150.0,0.00022845,4]
[346024424,1734633032328,-168.88,0.00022951,2]
[346024425,1734633032337,-150.0,0.00022964,4]
[346024426,1734633032346,-150.0,0.00022987,4]
[346024427,1734633032355,-183.642,0.00023,2]
[346024428,1734633032365,-1884.676,0.00023,2]
[346024429,1734633032374,-594.37038421,0.00023,2]
[346024430,1734633032407,-1943.98,0.00023,2]
[346024431,1734633032418,-974.0,0.00023,2]
[346024432,1734633032430,-541.345,0.00023,2]
[346024433,1734633032445,-18629.88618165,0.00023,2]
[346024434,1734633032454,-700.0,0.00023,2]
[346024435,1734633032463,-176.0,0.00023,2]
[346024436,1734633032473,-169.0,0.00023014,2]
[346024437,1734633032482,-958.64,0.00023082,2]
[346024438,1734633032491,-150.0,0.00023083,4]
[346024439,1734633032500,-270.77346,0.00023088,7]
[346024440,1734633032509,-500.0,0.00023088,4]
[346024441,1734633032518,-500.0,0.00023088,4]
[346024442,1734633032527,-500.0,0.00023088,4]
[346024443,1734633032536,-958.64,0.00023088,2]
[346024444,1734633032544,-958.64,0.00023095,2]
[346024445,1734633032553,-784.42,0.000231,2]
[346024446,1734633032562,-958.64,0.00023101,2]
[346024447,1734633032571,-958.64,0.00023107,2]
[346024448,1734633032579,-958.64,0.00023113,2]
[346024449,1734633032588,-958.64,0.00023119,2]
[346024450,1734633032597,-958.64,0.00023125,2]
[346024451,1734633032605,-958.64,0.00023131,2]
[346024452,1734633032614,-958.64,0.00023137,2]
[346024453,1734633032623,-958.64,0.00023143,2]
[346024454,1734633032632,-958.64,0.00023149,2]
[346024455,1734633032641,-958.64,0.00023155,2]
[346024457,1734633032652,-958.64,0.00023161,2]
[346024459,1734633032661,-958.64,0.00023168,2]
[346024460,1734633032670,-958.64,0.00023174,2]
[346024461,1734633032679,-500.0,0.00023179,4]
[346024462,1734633032688,-500.0,0.00023179,4]
[346024463,1734633032697,-500.0,0.00023179,4]
[346024464,1734633032706,-500.0,0.00023179,4]
[346024465,1734633032715,-500.0,0.00023179,4]
[346024466,1734633032724,-500.0,0.00023179,4]
[346024467,1734633032733,-500.0,0.00023179,4]
[346024468,1734633032741,-500.0,0.00023179,4]
[346024469,1734633032750,-500.0,0.00023179,4]
[346024470,1734633032759,-500.0,0.00023179,4]
[346024471,1734633032768,-500.0,0.00023179,4]
[346024472,1734633032778,-500.0,0.00023179,4]
[346024473,1734633032787,-500.0,0.00023179,4]
[346024474,1734633032798,-500.0,0.00023179,4]
[346024475,1734633032807,-500.0,0.00023179,4]
[346024476,1734633032816,-1006.83,0.00023179,4]
[346024477,1734633032825,-500.0,0.00023179,4]
[346024478,1734633032835,-500.0,0.00023179,4]
[346024479,1734633032844,-500.0,0.00023179,4]
[346024481,1734633032854,-500.0,0.00023179,4]
[346024483,1734633032863,-500.0,0.00023179,4]
[346024485,1734633032873,-500.0,0.00023179,4]
[346024487,1734633032882,-500.0,0.00023179,4]
[346024489,1734633032891,-500.0,0.00023179,4]
[346024491,1734633032904,-500.0,0.00023179,4]
[346024493,1734633032913,-500.0,0.00023179,4]
[346024495,1734633032923,-500.0,0.00023179,4]
[346024497,1734633032933,-515.68,0.00023179,4]
[346024499,1734633032943,-500.0,0.00023179,4]
[346024501,1734633032952,-500.0,0.00023179,4]
[346024503,1734633032962,-500.0,0.00023179,4]
[346024505,1734633032972,-500.0,0.00023179,4]
[346024507,1734633032981,-588.26228958,0.00023179,4]
[346024509,1734633032990,-500.0,0.00023179,4]
[346024511,1734633033000,-500.0,0.00023179,4]
[346024513,1734633033010,-958.64,0.0002318,2]
[346024515,1734633033019,-958.64,0.00023186,2]
[346024516,1734633033028,-958.64,0.00023192,2]
[346024519,1734633033039,-958.64,0.00023198,2]
[346024520,1734633033049,-150.0,0.00023202,4]
[346024522,1734633033059,-956.78,0.00023258,2]
[346024524,1734633033068,-270.77346,0.00023288,7]
[346024526,1734633033078,-150.0,0.00023321,4]
[346024527,1734633033088,-500.0,0.00023356,2]
[346024528,1734633033099,-6376.5536,0.000234,2]
[346024529,1734633033109,-500.0,0.00023415,7]
[346024530,1734633033119,-500.0,0.00023415,7]
[346024531,1734633033130,-500.0,0.00023415,7]
[346024532,1734633033140,-150.0,0.0002344,4]
[346024533,1734633033153,-382.05,0.00023453,4]
[346024534,1734633033163,-267.86,0.00023453,4]
[346024535,1734633033173,-500.0,0.00023453,4]
[346024536,1734633033184,-500.0,0.00023453,4]
[346024537,1734633033194,-500.0,0.00023453,4]
[346024538,1734633033205,-500.0,0.00023453,4]
[346024539,1734633033215,-500.0,0.00023453,4]
[346024540,1734633033225,-500.0,0.00023453,4]
[346024541,1734633033235,-396.95301178,0.00023453,4]
[346024542,1734633033245,-500.0,0.00023453,4]
[346024543,1734633033255,-500.0,0.00023453,4]
[346024544,1734633033265,-500.0,0.00023453,4]
[346024545,1734633033274,-1006.83,0.00023453,4]
[346024546,1734633033283,-500.0,0.00023453,4]
[346024547,1734633033293,-500.0,0.00023453,4]
[346024548,1734633033302,-500.0,0.00023453,4]
[346024550,1734633033312,-612.7,0.00023453,4]
[346024552,1734633033321,-500.0,0.00023453,4]
[346024554,1734633033332,-500.0,0.00023453,4]
[346024555,1734633033341,-500.0,0.00023453,4]
[346024557,1734633033350,-500.0,0.00023453,4]
[346024559,1734633033360,-500.0,0.00023453,4]
[346024561,1734633033369,-515.68,0.00023453,4]
[346024563,1734633033379,-350.48638456,0.00023453,4]
[346024565,1734633033389,-500.0,0.00023453,4]
[346024567,1734633033403,-500.0,0.00023453,4]
[346024569,1734633033413,-350.58,0.00023453,4]
[346024571,1734633033422,-500.0,0.00023453,4]
[346024573,1734633033432,-150.0,0.00023487,4]
[346024575,1734633033441,-270.77346,0.00023488,7]
[346024577,1734633033450,-57846.49081521,0.000235,2]
[346024579,1734633033460,-165.39948093,0.00023507,2]
[346024581,1734633033469,-615.10833277,0.00023549,2]
[346024583,1734633033479,-150.0,0.00023559,4]
[346024585,1734633033488,-150.0,0.00023677,4]
[346024587,1734633033498,-270.77346,0.00023688,7]
[346024589,1734633033508,-500.0,0.00023689,7]